Cogmind - Beta 17.1 @@@ ROGUE MODE // 2026.09.19 @ 06:09:16 Player: Somberlain Result: Destroyed by B-86 Titan with Railgun Performance ------------- Evolutions (5) 2500 Regions Visited (15) 3000 Robots Destroyed (170) 850 Value Destroyed (9409) 9409 Prototype IDs (7) 140 Alien Tech Used (0) 0 Bonus (5573) 5573 TOTAL SCORE: 21472 Bonus ------- High Alert Combat Kills 1104 Follower Combat Kills 1269 Entered Garrisons 1200 Used RIF Installer 2000 Cogmind --------- Core Integrity 0/1000 Matter 245/300 Energy 88/100 System Corruption 3% Temperature Cool (4) Movement Hovering (60) Location -5/Garrison Parts ------- > --- POWER (2) -------- (None) > --- PROPULSION (4) --- Combat Linear Gravjet > --- UTILITY (9) ------ Gravity Neutralizer Advanced Signal Interpreter Hacking Suite Advanced System Shield Relay Coupler [Hunter] (7) > --- WEAPON (2) ------- Lance > --- INVENTORY (5) ---- Relay Coupler [Demolisher] (29) Improved Plasma Cutter Peak State ------------ > --- POWER ------------ Micro Nuclear Core Neutrino Core > --- PROPULSION ------- Improved Gravmag System Antigrav System Antigrav System Antigrav System > --- UTILITY ---------- Advanced Heat Sink Advanced Signal Interpreter Improved Target Analyzer Improved Reaction Control System Hacking Suite System Shield Improved System Shield Advanced System Shield Advanced System Shield > --- WEAPON ----------- KE Penetrator KE Penetrator > --- INVENTORY -------- Advanced Remote Force Field Relay Coupler [Demolisher] Relay Coupler [Behemoth] Improved Remote Datajack Improved Plasma Cutter [Rating: 91] Favorites ----------- Power Micro Nuclear Core Engine Light Angular Momentum Engine Power Core Micro Nuclear Core Reactor Light Quantum Reactor Propulsion Aluminum Leg Treads Improved Medium Treads Leg Aluminum Leg Wheel Armored Huge Wheel Hover Unit Antigrav System Flight Unit VTOL Module Utility Hacking Suite Device Trap Scanner Storage Medium Storage Unit Processor Improved Target Analyzer Hackware Hacking Suite Protection Medium Armor Plating Weapon Remote Datajack Energy Gun Spread Laser Energy Cannon Particle Cannon Ballistic Gun Gauss Rifle Launcher Rocket Launcher Special Weapon Remote Datajack Impact Weapon Great Maul Slashing Weapon Great Axe Piercing Weapon Lance Special Melee Weapon Datajack Build | -11 -10 -10 -9 -9 -9 -8 -8 -8 -8 -7 -7 -6 -6 -5 -5 ------- Run | Yrd Mat Min Mat Sto Gar Mat Gar Mat Gar Fac Gar Fac Gar Fac Gar Slots Evolved 10 | . . . 2 . . 2 . . . 2 . 2 . 2 . Power 1 | . . . . . . . . . . . . . . 1 . Propulsion 2 | . . . . . . . . . . 1 . . . 1 . Utility 7 | . . . 2 . . 2 . . . 1 . 2 . . . Weapon . | . . . . . . . . . . . . . . . . Parts Attached 224 | 6 6 6 13 1 24 10 21 5 17 8 22 11 12 52 10 Power 25 | 1 . 2 1 . 5 . 3 . 1 . 2 . 2 7 1 Engine 11 | 1 . 2 . . 4 . 2 . . . 1 . 1 . . Core 13 | . . . 1 . 1 . 1 . 1 . 1 . 1 7 . Reactor 1 | . . . . . . . . . . . . . . . 1 Propulsion 50 | 2 . 3 2 . 5 2 5 2 2 4 6 2 1 13 1 Treads 5 | . . . . . . . . . . . 1 . . 4 . Leg 20 | 2 . 3 2 . 5 2 5 . . 1 . . . . . Wheel 4 | . . . . . . . . 1 . 3 . . . . . Hover 15 | . . . . . . . . . 2 . 1 2 1 8 1 Flight 6 | . . . . . . . . 1 . . 4 . . 1 . Utility 92 | 1 3 . 3 1 8 6 10 3 10 3 8 5 5 20 6 Device 28 | . 1 . 3 1 3 1 2 . . . 1 2 1 11 2 Storage 4 | 1 1 . . . . . . 1 . 1 . . . . . Processor 5 | . . . . . . 1 . . . . . 1 . 3 . Hackware 49 | . 1 . . . 2 4 8 2 10 2 6 2 4 5 3 Protection 6 | . . . . . 3 . . . . . 1 . . 1 1 Artifact . | . . . . . . . . . . . . . . . . Weapon 57 | 2 3 1 7 . 6 2 3 . 4 1 6 4 4 12 2 Energy Gun 23 | . . 1 4 . 2 . 1 . . . 3 2 3 7 . Energy Cannon 5 | . 1 . 1 . . 2 1 . . . . . . . . Ballistic Gun 15 | 2 2 . 1 . . . . . 1 1 2 2 . 4 . Ballistic Cannon . | . . . . . . . . . . . . . . . . Launcher 2 | . . . 1 . . . . . . . . . . 1 . Special Weapon 6 | . . . . . 1 . . . 2 . 1 . 1 . 1 Impact Weapon 2 | . . . . . 2 . . . . . . . . . . Slashing Weapon 2 | . . . . . . . 1 . 1 . . . . . . Piercing Weapon 1 | . . . . . . . . . . . . . . . 1 Special Melee Weapon 1 | . . . . . 1 . . . . . . . . . . Unidentified Prototypes 7 | . . . 1 . . 1 . 1 . . . 2 . 1 1 Parts Lost 75 | . . 1 3 1 3 . 5 1 . 4 15 . 7 22 13 Power 13 | . . 1 1 . 1 . 1 . . . 2 . . 5 2 Propulsion 19 | . . . . . 1 . 1 . . 3 4 . . 7 3 Utility 21 | . . . . 1 . . 2 1 . . 4 . 2 6 5 Weapon 22 | . . . 2 . 1 . 1 . . 1 5 . 5 4 3 Highest Loss Streak 13 | . . 1 2 1 1 . 3 1 . 2 13 . 3 5 4 To Critical Strikes . | . . . . . . . . . . . . . . . . Average Backups 9 | . 7 9 9 8 8 10 9 9 14 13 9 4 4 4 4 Power . | . . . . . . . . . . . . . . . . Propulsion . | . . 1 . 1 . . . . . . . . . . . Utility 5 | . 2 3 3 3 3 7 7 9 11 11 7 4 3 2 1 Weapon 2 | . 3 4 3 3 3 1 1 . 2 2 . . . . 1 Tool/Special . | . . . . . . . . . . . . . . . . Unused Backups 19 | . 1 2 2 . 2 . 3 . 2 . 2 . . 3 2 Power . | . . . . . . . . . . . . . . . . Propulsion 1 | . . 1 . . . . . . . . . . . . . Utility 8 | . . . . . 1 . 3 . . . 2 . . 1 1 Weapon 7 | . 1 1 2 . 1 . . . 1 . . . . 1 . Tool/Special 3 | . . . . . . . . . 1 . . . . 1 1 Average Slot Usage (%) 91 | . 97 99 95 99 97 94 92 92 90 80 80 81 81 86 73 Engine 4 | . 14 13 5 11 10 . 5 . . . 1 . . . . Core 5 | . . . 4 . . 9 3 9 9 7 2 6 6 8 6 Treads 1 | . . . . . . . . . . . . . . 7 . Leg 11 | . 28 28 21 22 21 18 17 5 . 1 3 . . . . Wheel 1 | . . . . . . . . 6 5 6 7 . . . . Hover 3 | . . . . . . . . . 6 4 . 10 16 9 9 Device 9 | . . . 21 21 17 8 7 7 . 3 4 7 6 16 8 Storage 7 | . 14 14 11 11 11 9 9 9 9 7 3 . . . . Processor 2 | . . . . . . 6 5 . . . . 3 6 7 9 Hackware 23 | . 10 14 11 11 11 24 25 36 41 32 32 31 35 19 23 Protection 1 | . . . . . 3 . . . . . 2 4 . 1 . Energy Gun 5 | . . 5 15 22 13 . 1 . . . . . 2 2 . Ballistic Gun 4 | . 21 22 . . . . . . 2 6 4 3 2 7 3 Special Weapon 3 | . . . . . . 9 7 9 8 7 5 6 2 . 1 Impact Weapon 1 | . . . . . 5 4 2 . . . . . . . . Slashing Weapon 1 | . . . . . . . 3 9 6 . . . . . . Peak Build Rating 91 | 6 11 20 27 25 28 34 40 40 43 42 44 58 58 91 88 Average Rating 37 | 4 9 13 24 24 20 31 31 38 40 36 33 47 51 71 70 On Entrance 32 | . 6 10 17 25 24 28 31 38 40 41 42 35 46 55 87 Avg Prop Armor Cover (%) 5 | . . . . . . 11 . 14 . 6 6 . . 3 . Naked Turns . | . . . . . . . . . . . . . . . . Heaviest Build 61 | 13 19 26 28 28 33 25 26 35 35 35 38 19 16 61 41 Greatest Support 120 | 20 20 25 25 25 25 25 30 28 28 32 26 22 31 120 36 Greatest Overweight (x) 10 | . . 1 1 1 2 2 1 4 3 10 2 1 . 2 1 Average Overweight (x) . | . . . . 1 . . . . 1 1 . . . . . Largest Inventory Capacity 15 | 8 10 10 10 10 10 10 10 15 15 15 15 5 5 5 5 Average Capacity 9 | 6 8 10 10 10 10 10 10 11 15 15 10 5 5 5 5 Most Carried 15 | 1 10 10 10 10 10 10 10 10 15 15 15 5 5 5 5 Average Carried 9 | . 7 9 9 9 9 9 9 9 14 13 9 4 4 4 4 Final Capacity 15 | 8 10 10 10 10 10 10 10 15 15 15 5 5 5 5 5 Final Carried 14 | . 10 10 10 9 10 10 10 10 14 12 5 5 5 5 2 Class Distribution -------------------- 46% | Bothacker-Mutant 38% | Scavenger-Mutant 5% | Botlord-Mutant 4% | Mutant 3% | Hacker-Mutant Dominant Class ---------------- Mutant | -10/Materials Scavenger-Mutant | -10/Mines Scavenger-Mutant | -9/Materials Scavenger-Mutant | -9/Storage Scavenger-Mutant | -9/Garrison Bothacker-Mutant | -8/Materials Bothacker-Mutant | -8/Garrison Bothacker-Mutant | -8/Materials Bothacker-Mutant | -8/Garrison Bothacker-Mutant | -7/Factory Bothacker-Mutant | -7/Garrison Botlord-Mutant | -6/Factory Botlord-Mutant | -6/Garrison Bothacker-Mutant | -5/Factory Hacker-Mutant | -5/Garrison Resources | -11 -10 -10 -9 -9 -9 -8 -8 -8 -8 -7 -7 -6 -6 -5 -5 ----------- Run | Yrd Mat Min Mat Sto Gar Mat Gar Mat Gar Fac Gar Fac Gar Fac Gar Matter Collected 5502 | 203 221 163 208 10 442 165 653 78 846 83 516 167 239 1077 431 Remotely . | . . . . . . . . . . . . . . . . Salvage Created 6157 | . 457 91 1141 79 828 190 375 69 295 28 271 127 163 1108 935 Parts 359 | . 23 4 62 7 51 11 32 6 25 2 16 4 11 62 43 Haulers Intercepted 7 | . 2 . 4 . . 1 . . . . . . . . . Recyclers Shooed 2 | . . . . . . 2 . . . . . . . . . Parts Field Recycled . | . . . . . . . . . . . . . . . . Retrieved Matter . | . . . . . . . . . . . . . . . . Parts Self-Destructed . | . . . . . . . . . . . . . . . . Prevented . | . . . . . . . . . . . . . . . . Parts Restored . | . . . . . . . . . . . . . . . . Kills | -11 -10 -10 -9 -9 -9 -8 -8 -8 -8 -7 -7 -6 -6 -5 -5 ------- Run | Yrd Mat Min Mat Sto Gar Mat Gar Mat Gar Fac Gar Fac Gar Fac Gar Combat Hostiles Destroyed 140 | . 11 2 22 4 27 3 20 1 6 . 12 2 3 18 9 Melee 11 | . . . . . . . 5 1 4 . . . . . 1 Guns 98 | . 6 2 18 4 25 . 2 . 2 . 12 2 3 14 8 Cannons 14 | . 4 . 3 . . 3 4 . . . . . . . . AOE 12 | . 1 . . . . . 9 . . . . . . 2 . Classes Destroyed 14 | . 5 . 3 . 2 . 2 . . . . . . 2 . Worker 4 | . 2 . . . . . . . . . . . . 2 . Tunneler 1 | . . . . . . . . . . . . . . 1 . Hauler 7 | . 2 . 4 . . 1 . . . . . . . . . Recycler 2 | . . . 1 . . . . . . . . . . 1 . Operator 7 | . 1 . 3 . . . . 2 . . . . . 1 . Watcher 2 | . . . 1 . . . . . . . . . . 1 . Swarmer 61 | . 6 . 6 3 8 . 12 . . 1 11 2 . 4 8 Cutter 7 | . . . . . . . 2 . 1 . . . . 4 . Grunt 34 | . 5 2 9 . 11 . 2 1 1 . . 1 1 . 1 Brawler 1 | . . . . . . . 1 . . . . . . . . Duelist 4 | . . . . . 1 1 1 . . . . . . . 1 Sentry 18 | . . . 7 1 5 2 . . 1 . . . . 2 . Hunter 2 | . . . . . . . . . . . . . . 2 . Programmer 19 | . . . . . 2 . 3 . 4 . 1 . 2 7 . Thug 1 | . . . . . 1 . . . . . . . . . . Best Kill Streak 8 | . 8 2 7 4 4 2 4 1 3 . 8 2 1 3 4 Combat Bots Only 8 | . 5 2 6 4 4 2 4 1 3 . 8 2 1 3 4 Max Kills in Single Turn 4 | . 4 1 2 2 2 1 3 1 1 1 1 1 1 2 1 Gunslinging 1 | . . . 1 1 1 . . . . . . . . . . Exploded 3 | . 1 . . . . . 3 . . . . . . 2 . Melee 1 | . . . . . . . 1 1 1 . . . . . 1 Uniques/NPCs Destroyed . | . . . . . . . . . . . . . . . . Combat | -11 -10 -10 -9 -9 -9 -8 -8 -8 -8 -7 -7 -6 -6 -5 -5 -------- Run | Yrd Mat Min Mat Sto Gar Mat Gar Mat Gar Fac Gar Fac Gar Fac Gar Hostile Shots Fired 912 | . 38 21 55 20 127 10 75 12 29 9 142 31 50 179 114 Missed 280 | . 15 5 21 6 31 2 26 2 11 2 38 14 13 63 31 Hits 632 | . 23 16 34 14 96 8 49 10 18 7 104 17 37 116 83 Melee 18 | . . . . . . . 3 . 1 . . . . 10 4 Projectile 614 | . 23 16 34 14 96 8 46 10 17 7 104 17 37 106 79 AOE 5 | . . . . . . . 2 . . . . . . 3 . Critical Strikes 23 | . . . . . 1 . 4 . 3 1 1 . 3 8 2 Part Disruptions 2 | . . . . . . . . . . . . . . 2 . Damage Taken 10382 | . 247 202 450 154 1075 142 782 149 299 390 1558 246 682 2472 1534 Core 2435 | . 37 26 60 48 159 27 59 41 76 69 610 . 219 471 533 Absorbed by Shields 108 | . . . . . . . 43 . . . . . . 65 . Redirected to Shielding 93 | . . . . . . . . . . . . . . . 93 Ignored by Resistances 29 | . . . . . . . . . . . . . . 29 . Regen/Repaired (Parts) 82 | . . . 39 . . . . . . . . . . 43 . Core Remaining (%) 57 | 100 . 74 . . 33 . . . 63 . 3 . 74 . . Volleys Fired 680 | . 34 11 65 4 71 26 52 12 98 27 58 32 42 109 39 Largest 2 | . 2 2 2 2 2 1 1 1 1 1 2 1 2 2 2 Hottest 170 | . 88 95 143 130 130 68 69 5 28 28 100 30 138 170 66 Shots Fired 907 | . 66 22 118 8 111 26 52 12 97 27 62 32 50 177 47 Gun 689 | . 37 22 99 8 108 . 5 . 73 13 59 18 41 167 39 Cannon 77 | . 29 . 16 . . 15 17 . . . . . . . . Launcher 19 | . . . 3 . 3 . 8 . . . . . . 5 . Special 122 | . . . . . . 11 22 12 24 14 3 14 9 5 8 Kinetic 388 | . 37 21 . . . . . . 73 13 49 18 25 113 39 Thermal 333 | . 29 1 115 8 108 15 15 . . . 1 . 13 28 . Explosive 19 | . . . 3 . 3 . 8 . . . . . . 5 . Electromagnetic 45 | . . . . . . . 7 . . . 9 . 3 26 . Robot Hit Streak 30 | . 10 5 15 8 30 10 15 5 7 6 7 13 6 10 5 Robot Miss Streak 6 | . 3 2 5 2 5 3 2 3 2 2 6 3 2 5 4 Penetration Max 1 | . . . . . . . . . . 1 . . . 1 1 Secondary Targets 9 | . . 1 2 1 3 . . . . . . . . 1 1 Max Gunslinging Chain 1 | . . 1 1 1 1 . . . . . . . . 1 1 Shots Hit Robots 561 | . 38 13 83 6 81 22 43 10 31 15 40 16 23 91 49 Core Hits 316 | . 22 6 57 7 80 3 28 3 7 1 29 3 7 44 19 Critical Kills 4 | . 1 . . . . . . . . . . . 1 2 . Critical Parts Destroyed 7 | . 1 . . . 2 . . . . . . 1 . 3 . Critical Strikes 36 | . 2 . 4 . 5 . 1 . 3 . 1 1 1 13 5 Burn 13 | . . . 4 . 3 . . . . . . . . 6 . Destroy 10 | . 2 . . . . . . . . . . 1 1 6 . Corrupt 2 | . . . . . . . . . . . 1 . . 1 . Smash 2 | . . . . . 2 . . . . . . . . . . Sever 4 | . . . . . . . 1 . 3 . . . . . . Impale 5 | . . . . . . . . . . . . . . . 5 Melee Attacks 224 | . . . . . 57 1 24 5 98 . . . . . 39 Impact 61 | . . . . . 54 1 6 . . . . . . . . Slashing 121 | . . . . . . . 18 5 98 . . . . . . Piercing 39 | . . . . . . . . . . . . . . . 39 Sneak Attacks 7 | . . . . . 1 1 . 1 4 . . . . . . Combat Hostiles . | . . . . . . . . . . . . . . . . Follow-up Attacks . | . . . . . . . . . . . . . . . . Damage Inflicted 13106 | . 793 164 1729 95 1485 296 1690 197 715 142 653 184 367 2538 2058 Guns 7637 | . 294 164 1504 93 1328 . 63 . 117 142 650 184 343 2178 577 Cannons 984 | . 374 . 155 . . 232 223 . . . . . . . . Explosions 1646 | . 125 . 70 . . . 1091 . . . . . . 360 . Melee 2810 | . . . . . 157 64 313 197 598 . . . . . 1481 Ramming 29 | . . . . 2 . . . . . . 3 . 24 . . Kinetic 3704 | . 294 164 . . . . . . 117 142 552 184 235 1439 577 Thermal 4452 | . 374 . 1659 93 1328 232 191 . . . 16 . 101 458 . Explosive 1521 | . . . 70 . . . 1091 . . . . . . 360 . Electromagnetic 590 | . 125 . . . . . 95 . . . 82 . 7 281 . Impact 221 | . . . . . 157 64 . . . . . . . . . Slashing 1108 | . . . . . . . 313 197 598 . . . . . . Piercing 1481 | . . . . . . . . . . . . . . . 1481 Highest Corruption 13 | . 1 1 1 1 3 . 11 11 13 . 3 2 4 3 3 Average Corruption 5 | . 1 1 1 1 1 . 9 11 12 . 2 1 2 2 3 Corruption Purged 4 | . . . . . . . . . . . 3 . . 1 . Corruption Blocked . | . . . . . . . . . . . . . . . . Effects 225 | . 2 5 4 . 16 . 43 14 99 . 6 . 7 19 10 Message Errors 64 | . 1 2 1 . 4 . 10 6 30 . 3 . 3 3 1 Matter Fused 56 | . 1 2 1 . 3 . 14 2 20 . 3 . 2 4 4 Heat Flow Errors 37 | . . . . . 3 . 9 1 15 . . . 1 5 3 Energy Discharges 19 | . . 1 . . 2 . 2 1 11 . . . . 2 . Parts Rejected 2 | . . . . . . . 2 . . . . . . . . Parts Fused 3 | . . . . . . . 1 . 1 . . . . 1 . Data Loss (minor) 23 | . . . 1 . 1 . 5 4 10 . . . 1 1 . Data Loss (major) 8 | . . . . . 3 . . . 4 . . . . 1 . Misfires 3 | . . . 1 . . . . . 2 . . . . . . Alerts 4 | . . . . . . . . . 2 . . . . 2 . Misdirections 1 | . . . . . . . . . 1 . . . . . . Weapon Failures 5 | . . . . . . . . . 3 . . . . . 2 Overload Shots . | . . . . . . . . . . . . . . . . Overflow Damage 473 | . 3 . . . 157 44 116 . . . . . . 55 98 Projectiles 3 | . 3 . . . . . . . . . . . . . . Explosions 164 | . . . . . . . 109 . . . . . . 55 . Melee 306 | . . . . . 157 44 7 . . . . . . . 98 Knockbacks . | . . . . . . . . . . . . . . . . Impact . | . . . . . . . . . . . . . . . . Kinetic . | . . . . . . . . . . . . . . . . Secondary . | . . . . . . . . . . . . . . . . Self-Inflicted Damage 212 | . 34 . 29 . . . 125 . . . . . 24 . . Shots 7 | . 1 . 1 . . . 5 . . . . . . . . Rammed 5 | . . . . . . . . . . . 5 . . . . Targets Rammed 6 | . . . . 1 . . . . . . 5 . . . . Kicked 1 | . . . . 1 . . . . . . . . . . . Crushed . | . . . . . . . . . . . . . . . . Highest Temperature 320 | . 224 33 291 76 162 180 252 234 264 14 72 . 218 277 320 Average Temperature 74 | . 80 8 99 35 51 70 64 119 98 7 34 . 76 85 110 Received Heat Transfer 1765 | . 66 117 114 18 282 45 126 63 18 45 . 72 261 52 486 Effects 4 | . 1 . . . . . . . 1 . . . 2 . . Energy Bleed 2 | . 1 . . . . . . . 1 . . . . . . Interference 2 | . . . . . . . . . . . . . 2 . . Siege Activations . | . . . . . . . . . . . . . . . . Martial Activations . | . . . . . . . . . . . . . . . . Shielding Activations . | . . . . . . . . . . . . . . . . Robots Disrupted . | . . . . . . . . . . . . . . . . Combat Hostiles . | . . . . . . . . . . . . . . . . Robots Corrupted 3 | . . . . . 1 1 . . . . . . . 1 . Combat Hostiles 2 | . . . . . 1 . . . . . . . . 1 . Parts Fried 7 | . . . . . . . . . . . . . . 7 . Impact Corruptions 3 | . . . . . 2 1 . . . . . . . . . Robots Melted 3 | . . . 1 . 1 . . . . . . . . 1 . Combat Hostiles 3 | . . . 1 . 1 . . . . . . . . 1 . Parts Melted 13 | . . . 3 . 4 . . . . . . . . 6 . Heat Transferred 8968 | . 666 . 3116 161 2313 407 333 . . . 37 . 185 1750 . Parts Sabotaged . | . . . . . . . . . . . . . . . . Parts Stolen . | . . . . . . . . . . . . . . . . Parts Stripped . | . . . . . . . . . . . . . . . . Power Chain Reactions . | . . . . . . . . . . . . . . . . Alert | -11 -10 -10 -9 -9 -9 -8 -8 -8 -8 -7 -7 -6 -6 -5 -5 ------- Run | Yrd Mat Min Mat Sto Gar Mat Gar Mat Gar Fac Gar Fac Gar Fac Gar Maximum Alert Level 5 | . 1 . 2 . 5 3 4 3 5 4 3 2 1 1 1 Low Security (%) 29 | 100 93 100 40 100 5 . . . . . . 74 73 75 18 Level 1 15 | . 6 . 50 . 19 . . . . . . 3 26 24 81 Level 2 10 | . . . 9 . 18 . 22 28 11 . 24 22 . . . Level 3 24 | . . . . . 21 100 40 71 32 90 75 . . . . Level 4 14 | . . . . . 21 . 36 . 32 9 . . . . . Level 5 6 | . . . . . 12 . . . 23 . . . . . . High Security . | . . . . . . . . . . . . . . . . Max Security . | . . . . . . . . . . . . . . . . Peak Influence 2106 | . 207 76 425 172 2043 1025 1511 744 2106 1115 802 420 374 244 301 Initial 1105 | . . 46 . 122 105 995 559 736 422 1105 695 420 37 196 142 Average 647 | . 130 8 225 119 884 932 1034 708 1207 1050 743 117 157 96 235 Influence Increases 8968 | . 331 50 726 100 1988 176 1202 144 1984 206 417 173 427 705 339 Destroy 0b10 Robot/C 3685 | . 220 40 440 80 680 80 620 60 480 100 225 105 90 330 135 Destroy 0b10 Robot/NC 158 | . 25 . 45 . . 10 5 15 . 10 . . . 24 24 Destroy Leader 544 | . 44 10 140 20 30 44 20 22 30 12 18 32 24 82 16 Allied During Kill 530 | . . . . . 61 24 51 15 215 77 20 32 10 23 2 Successful Hack 119 | . 12 . 18 . 30 . 14 2 . 6 14 3 . 20 . Disable Machine 141 | . 30 . 30 . . 15 . 30 . . . . 12 24 . Anti-Garrison Action 2739 | . . . . . 1000 . 350 . 1150 . 50 . 151 . 38 Destroy Structure 536 | . . . 23 . 127 3 67 . 94 1 6 1 20 166 28 Partial Spotted 24 | . . . . . . . . . . . . . . 12 12 Lose Combat Pursuer 492 | . . . 30 . 60 . 75 . 15 . 84 . 120 24 84 Influence Decreases 8717 | . 210 171 436 228 107 1358 552 1005 528 1319 608 922 106 875 292 Entered New Map 4590 | . . 75 . 168 57 1048 302 775 228 1001 298 382 16 178 62 Time Decay 1850 | . 210 86 406 50 . 190 . 180 . 238 . 99 . 391 . Lost Part 696 | . . 10 30 10 30 . 50 10 . 40 150 . 70 166 130 Lost Ally 1206 | . . . . . 20 120 200 40 300 40 160 66 20 140 100 Purge Threat 375 | . . . . . . . . . . . . 375 . . . Squads Dispatched 24 | . 2 . 2 2 . 2 . 1 . 2 . 5 . 8 . Investigation 3 | . 1 . . . . . . . . . . 2 . . . Extermination 6 | . . . . . . . . . . 1 . 1 . 4 . Reinforcement 11 | . 1 . 2 . . 1 . 1 . . . 2 . 4 . Assault 1 | . . . . . . . . . . 1 . . . . . Garrison 3 | . . . . 2 . 1 . . . . . . . . . Intercept . | . . . . . . . . . . . . . . . . Searches Triggered . | . . . . . . . . . . . . . . . . Construction Impeded 2 | . . . . . . . . . . . . 1 . 1 . Haulers Reinforced . | . . . . . . . . . . . . . . . . Active Scanning Responses . | . . . . . . . . . . . . . . . . Cargo Convoy Interrupts . | . . . . . . . . . . . . . . . . Stealth | -11 -10 -10 -9 -9 -9 -8 -8 -8 -8 -7 -7 -6 -6 -5 -5 --------- Run | Yrd Mat Min Mat Sto Gar Mat Gar Mat Gar Fac Gar Fac Gar Fac Gar Distress Signals 10 | . 1 . 2 . . 2 1 2 . . . 1 . 1 . Communications Jammed . | . . . . . . . . . . . . . . . . Distress Signals . | . . . . . . . . . . . . . . . . Times Spotted 322 | . 17 3 33 5 36 16 40 8 32 15 23 15 19 37 23 Peak Tracking Total 12 | . 6 2 8 3 4 4 6 2 5 5 9 4 5 5 12 Tactical Retreats 20 | . . . 2 . 3 . 3 . 1 . 3 . 3 2 3 Traps | -11 -10 -10 -9 -9 -9 -8 -8 -8 -8 -7 -7 -6 -6 -5 -5 ------- Run | Yrd Mat Min Mat Sto Gar Mat Gar Mat Gar Fac Gar Fac Gar Fac Gar Traps Triggered 23 | . 1 . 1 . 4 . 4 . 6 2 . 2 1 2 . Indirectly . | . . . . . . . . . . . . . . . . Trap Hack Attempts . | . . . . . . . . . . . . . . . . Triggered . | . . . . . . . . . . . . . . . . Disarmed . | . . . . . . . . . . . . . . . . Reprogrammed . | . . . . . . . . . . . . . . . . Reused . | . . . . . . . . . . . . . . . . Traps Extracted . | . . . . . . . . . . . . . . . . Installed . | . . . . . . . . . . . . . . . . Triggered . | . . . . . . . . . . . . . . . . Machines | -11 -10 -10 -9 -9 -9 -8 -8 -8 -8 -7 -7 -6 -6 -5 -5 ---------- Run | Yrd Mat Min Mat Sto Gar Mat Gar Mat Gar Fac Gar Fac Gar Fac Gar Machines Disabled 34 | . 2 . 2 . 5 1 5 2 9 . 1 . 3 2 2 Max in Single Turn 2 | . 2 . 2 . 1 . 1 1 1 . 1 . 1 2 1 Garrison Relay 22 | . . . . . 5 . 5 . 8 . 1 . 2 . 1 Machines Repaired . | . . . . . . . . . . . . . . . . Machines Dismantled . | . . . . . . . . . . . . . . . . Machines Sabotaged . | . . . . . . . . . . . . . . . . Overloaded Fab Kills . | . . . . . . . . . . . . . . . . Hacking | -11 -10 -10 -9 -9 -9 -8 -8 -8 -8 -7 -7 -6 -6 -5 -5 --------- Run | Yrd Mat Min Mat Sto Gar Mat Gar Mat Gar Fac Gar Fac Gar Fac Gar Machines Accessed 40 | . 3 . 10 1 4 2 2 2 1 2 2 3 . 8 . Terminals 25 | . 2 . 7 . 4 . 2 . 1 1 2 2 . 4 . Fabricators 1 | . . . . . . . . . . . . . . 1 . Repair Stations 3 | . . . 1 . . . . . . . . . . 2 . Recycling Units 2 | . 1 . . . . 1 . . . . . . . . . Scanalyzers 3 | . . . 2 . . . . 1 . . . . . . . Garrison Access 6 | . . . . 1 . 1 . 1 . 1 . 1 . 1 . Total Hacks 76 | . 7 . 22 1 7 4 5 2 2 4 2 7 . 13 . Successful 35 | . 3 . 11 1 4 3 1 2 . 2 1 2 . 5 . Failed 41 | . 4 . 11 . 3 1 4 . 2 2 1 5 . 8 . Catastrophic 9 | . . . 2 . . . . . 1 1 . 2 . 3 . Database Lockouts . | . . . . . . . . . . . . . . . . Manual 23 | . 4 . 12 . . . . . . 3 . 4 . . . Terminals 54 | . 6 . 15 . 7 . 5 . 2 3 2 6 . 8 . Fabricators 1 | . . . . . . . . . . . . . . 1 . Repair Stations 5 | . . . 2 . . . . . . . . . . 3 . Recycling Units 4 | . 1 . . . . 3 . . . . . . . . . Scanalyzers 6 | . . . 5 . . . . 1 . . . . . . . Garrison Access 6 | . . . . 1 . 1 . 1 . 1 . 1 . 1 . Terminal Hacks 15 | . 2 . 4 . 4 . 1 . . 1 1 1 . 1 . Robot Analysis 4 | . 2 . 2 . . . . . . . . . . . . Open Door 1 | . . . . . 1 . . . . . . . . . . Branch Access Points 2 | . . . 1 . . . . . . . . . . 1 . Emergency Access Points 1 | . . . . . 1 . . . . . . . . . . Locate Traps 1 | . . . 1 . . . . . . . . . . . . Zone Layout 2 | . . . . . . . . . . 1 . 1 . . . Garrison Registry 2 | . . . . . 1 . . . . . 1 . . . . Patrol Navigation 1 | . . . . . . . 1 . . . . . . . . Security Stations 1 | . . . . . 1 . . . . . . . . . . Fabricator Hacks 1 | . . . . . . . . . . . . . . 1 . Build 1 | . . . . . . . . . . . . . . 1 . Repair Station Hacks 4 | . . . 2 . . . . . . . . . . 2 . Scan Component 2 | . . . 1 . . . . . . . . . . 1 . Repair 2 | . . . 1 . . . . . . . . . . 1 . Recycling Unit Hacks 3 | . 1 . . . . 2 . . . . . . . . . Retrieve Components 3 | . 1 . . . . 2 . . . . . . . . . Scanalyzer 6 | . . . 5 . . . . 1 . . . . . . . Retrieve Study 6 | . . . 5 . . . . 1 . . . . . . . Garrison Access Hacks 6 | . . . . 1 . 1 . 1 . 1 . 1 . 1 . Unlock Access 6 | . . . . 1 . 1 . 1 . 1 . 1 . 1 . Unauthorized Hacks . | . . . . . . . . . . . . . . . . Terminals . | . . . . . . . . . . . . . . . . Fabricators . | . . . . . . . . . . . . . . . . Repair Stations . | . . . . . . . . . . . . . . . . Recycling Units . | . . . . . . . . . . . . . . . . Scanalyzers . | . . . . . . . . . . . . . . . . Garrison Access . | . . . . . . . . . . . . . . . . Data Cores Recovered 1 | . . . . . . . . 1 . . . . . . . Used . | . . . . . . . . . . . . . . . . Hacking Detections 31 | . 2 . 9 1 2 1 2 1 1 2 1 3 . 6 . Full Trace Events 4 | . . . . . 1 . . . 1 . . 2 . . . Feedback Events . | . . . . . . . . . . . . . . . . Feedback Blocked . | . . . . . . . . . . . . . . . . Robot Schematics Acquired . | . . . . . . . . . . . . . . . . Robots Built 3 | . . . . . . . . . . . . . . 3 . Authchips . | . . . . . . . . . . . . . . . . Time 134 | . . . . . . . . . . . . . . 134 . Total Robot Build Rating 12 | . . . . . . . . . . . . . . 12 . Part Schematics Acquired . | . . . . . . . . . . . . . . . . Parts Built . | . . . . . . . . . . . . . . . . Authchips . | . . . . . . . . . . . . . . . . Time . | . . . . . . . . . . . . . . . . Total Part Build Rating . | . . . . . . . . . . . . . . . . Part Studies Acquired 6 | . . . 5 . . . . 1 . . . . . . . Parts Repaired 2 | . . . 1 . . . . . . . . . . 1 . Time 63 | . . . 38 . . . . . . . . . . 25 . Parts Recycled . | . . . . . . . . . . . . . . . . Recycled Matter . | . . . . . . . . . . . . . . . . Retrieved Matter . | . . . . . . . . . . . . . . . . Retrieved Components 10 | . 10 . . . . . . . . . . . . . . Parts Scanalyzed . | . . . . . . . . . . . . . . . . Part Schematics Acquired . | . . . . . . . . . . . . . . . . Parts Damaged . | . . . . . . . . . . . . . . . . Bothacking | -11 -10 -10 -9 -9 -9 -8 -8 -8 -8 -7 -7 -6 -6 -5 -5 ------------ Run | Yrd Mat Min Mat Sto Gar Mat Gar Mat Gar Fac Gar Fac Gar Fac Gar Used RIF Installer 4 | . . . . . 1 . 1 . 1 . 1 . . . . Command Fork 1 | . . . . . . . 1 . . . . . . . . Threat Obfuscator 1 | . . . . . . . . . . . 1 . . . . Autooverride 1 | . . . . . . . . . 1 . . . . . . Robots Hacked 77 | . . . . . 3 9 8 5 18 9 3 8 4 5 5 Non-combat 2 | . . . . . . . . . . 1 . 1 . . . Combat 75 | . . . . . 3 9 8 5 18 8 3 7 4 5 5 Autooverrided 9 | . . . . . . . . . 5 . . 1 1 2 . Robot Hacks Applied 77 | . . . . . 3 10 9 6 13 10 3 11 4 3 5 parse_system 3 | . . . . . . . 1 . . 1 1 . . . . purge_threat 3 | . . . . . . . . . . . . 3 . . . find_garrison 4 | . . . . . . 1 . 1 . 1 . 1 . . . broadcast_data 1 | . . . . . 1 . . . . . . . . . . spike_heat 1 | . . . . . . . . . . . . . 1 . . disable_weapons 1 | . . . . . . . . . 1 . . . . . . reboot_system 2 | . . . . . . . . . 1 1 . . . . . overwrite_iff 6 | . . . . . . . . . 1 2 . . . 2 1 streamctrl_high 2 | . . . . . . . . . . . . . 1 . 1 formatsys_high 54 | . . . . . 2 9 8 5 10 5 2 7 2 1 3 Relay Couplers Released 84 | . . . . . 20 . 21 . 30 . 3 . 6 . 4 Machine Destruction 84 | . . . . . 20 . 21 . 30 . 3 . 6 . 4 Attached 42 | . . . . . 2 3 8 2 10 2 6 1 4 1 3 Fabnet Peak Effective % . | . . . . . . . . . . . . . . . . Robots Rewired 11 | . . . . . 4 . 3 . 2 . . . . . 2 Allies Hacked 3 | . . . . . . . . . 1 . 1 . . 1 . Hacks Repelled . | . . . . . . . . . . . . . . . . Allies | -11 -10 -10 -9 -9 -9 -8 -8 -8 -8 -7 -7 -6 -6 -5 -5 -------- Run | Yrd Mat Min Mat Sto Gar Mat Gar Mat Gar Fac Gar Fac Gar Fac Gar Total Allies 88 | . . . . . 6 9 11 5 20 9 3 7 3 8 7 Largest Group 11 | . . . . . 4 5 5 7 10 11 6 4 2 3 2 Highest-Rated Group 200 | . . . . . 115 92 92 125 164 200 114 137 58 60 148 Highest-Rated Ally 148 | . . . . . 39 39 29 21 24 32 32 47 29 20 148 Total Orders . | . . . . . . . . . . . . . . . . Ally Attacks 444 | . . . . . 49 40 51 27 125 27 18 50 12 21 24 Total Damage 7219 | . . . . . 567 522 569 524 1669 446 332 804 130 496 1160 Kills 66 | . . . . . 8 3 12 3 18 8 2 5 3 4 . Allies Corrupted . | . . . . . . . . . . . . . . . . Allies Melted 3 | . . . . . . . . . 1 . 1 . . . 1 Intel | -11 -10 -10 -9 -9 -9 -8 -8 -8 -8 -7 -7 -6 -6 -5 -5 ------- Run | Yrd Mat Min Mat Sto Gar Mat Gar Mat Gar Fac Gar Fac Gar Fac Gar Active Infowar (turns) 5001 | . . . 537 109 1732 293 1030 279 174 255 241 212 137 2 . IFF 349 | . . . . . . . . . . . . 212 137 . . Traps 4650 | . . . 537 109 1732 293 1030 279 174 255 241 . . . . ECM 2 | . . . . . . . . . . . . . . 2 . Robot Analysis Total 4 | . 2 . 2 . . . . . . . . . . . . Derelict Logs Recovered 1 | . . 1 . . . . . . . . . . . . . Drone Launches . | . . . . . . . . . . . . . . . . Drone Recoveries . | . . . . . . . . . . . . . . . . Exploration | -11 -10 -10 -9 -9 -9 -8 -8 -8 -8 -7 -7 -6 -6 -5 -5 ------------- Run | Yrd Mat Min Mat Sto Gar Mat Gar Mat Gar Fac Gar Fac Gar Fac Gar Turns Passed 14704 | 52 488 825 1299 109 2733 381 1422 363 2740 515 514 265 384 2129 485 Spaces Moved 8951 | 38 281 597 658 44 1132 149 776 244 1743 258 290 300 393 1693 355 Core 33 | 3 . . . . . . . . . 7 23 . . . . Treads 346 | . . . . . . . . . . . . . . 346 . Legs 3749 | 35 281 597 658 44 1132 149 776 77 . . . . . . . Wheels 1612 | . . . . . . . . 166 1174 143 129 . . . . Hover 2991 | . . . . . . . . . 569 108 5 214 393 1347 355 Flight 220 | . . . . . . . . 1 . . 133 86 . . . Fastest Speed 29 | 50 120 120 112 182 112 112 112 100 115 105 29 29 43 45 52 Average Speed 114 | 114 120 124 143 182 170 164 125 106 115 139 68 51 49 91 73 Slowest Speed 550 | 120 120 190 190 182 260 245 190 305 240 550 190 110 51 180 111 Overloaded Moves 23 | . . . . . . . . . . . . 7 16 . . Propulsion Burnouts . | . . . . . . . . . . . . . . . . Robots Hopped . | . . . . . . . . . . . . . . . . Potential Cave-ins . | . . . . . . . . . . . . . . . . Cave-ins Triggered . | . . . . . . . . . . . . . . . . Exploration Rate (%) 43 | 2 66 91 61 8 91 16 70 29 79 14 39 12 42 27 46 Regions Visited 15 Branch Regions 2 Pre-discovered Areas . | . . . . . . . . . . . . . . . . Known Exits Taken 7 | . . . 1 1 . 1 . 1 . 1 . 1 . 1 . Unknown Exits Taken 3 | 1 1 1 . . . . . . . . . . . . . Scrap Searched 2 | . . 2 . . . . . . . . . . . . . Spaces Dug 88 | . . . . . 17 . 5 . 44 2 . . 1 9 10 Terrain Destroyed 256 | . . . 20 . 42 . 44 . 44 2 1 . 4 88 11 Melee 60 | . . . . . 17 . 5 . 28 . . . . . 10 Projectile 33 | . . . . . . . . . 15 2 . . 4 12 . AOE 159 | . . . 20 . 25 . 39 . . . . . . 75 . Terrain Rammed 1 | . . . . . . . . . . . . . 1 . . Walls Destroyed . | . . . . . . . . . . . . . . . . Machines Disabled 1 | . . . . . . . . . . . . . 1 . . Actions | -11 -10 -10 -9 -9 -9 -8 -8 -8 -8 -7 -7 -6 -6 -5 -5 --------- Run | Yrd Mat Min Mat Sto Gar Mat Gar Mat Gar Fac Gar Fac Gar Fac Gar Total 12113 | 44 366 659 895 64 1715 259 1135 333 2209 389 538 382 533 2124 468 Wait 1520 | . 31 29 136 15 328 60 187 59 153 82 147 22 73 194 4 Move 8938 | 37 280 596 657 44 1130 149 775 243 1742 258 289 299 391 1693 355 Hop . | . . . . . . . . . . . . . . . . Pick Up 97 | 1 10 6 6 . 14 2 16 1 17 1 7 1 4 10 1 Fast Attach 151 | 5 3 1 8 . 7 6 13 3 7 6 16 13 7 49 7 Attach 50 | 1 . 1 4 1 4 2 6 2 6 3 5 1 4 6 4 Detach 29 | . 1 . 2 . 1 2 1 1 7 . 2 . . 10 2 Swap 94 | . 3 5 6 . 29 4 20 2 8 . 2 . 3 5 7 Drop 130 | . 4 10 11 . 24 4 18 4 9 1 5 8 3 25 4 Fire 680 | . 34 11 65 4 71 26 52 12 98 27 58 32 42 109 39 Melee 224 | . . . . . 57 1 24 5 98 . . . . . 39 Ram 1 | . . . . . . . . . . . . . 1 . . Kick . | . . . . . . . . . . . . . . . . Crush 5 | . . . . . . . . . . . 5 . . . . Escape Stasis 104 | . . . . . 10 . 15 . 48 8 . . . 23 . Rewire 90 | . . . . . 40 3 8 1 16 3 2 6 5 . 6 Trap . | . . . . . . . . . . . . . . . . Miscellaneous . | . . . . . . . . . . . . . . . . Route ------- -11/Scrapyard -10/Materials (discovered 3 exits: *Mat x2 / [*Min]) -10/Mines -9/Materials (discovered 6 exits: *Mat x2 / *Min x2 / *Sto x2) -9/Storage -9/Garrison (discovered 3 exits: *Mat x3) -8/Materials -8/Garrison (discovered 2 exits: *Mat x2) -8/Materials (discovered 2 exits: *Fac / Gar) -8/Garrison (discovered 3 exits: *Fac x3) -7/Factory -7/Garrison (discovered 3 exits: *Fac x3) -6/Factory -6/Garrison -5/Factory (discovered 3 exits: Upp x2 / Gar) -5/Garrison (discovered 1 exit: [*Fac]) History --------- Turn | Location | Event 3 | -11/Scrapyard | Discovered new exit (range 16) 53 | -11/Scrapyard | Entered Materials 229 | -10/Materials | Discovered new exit (range 16) 300 | -10/Materials | Build established: Mutant 397 | -10/Materials | Discovered new exit (range 7) 522 | -10/Materials | Discovered new exit (range 14) 541 | -10/Materials | Entered Mines 610 | -10/Mines | A weapon hastily lodged in a ceiling crevice suddenly fell to the ground 866 | -10/Mines | Build established: Scavenger-Mutant 989 | -10/Mines | Joined a pair of Derelicts in attacking an 0b10 outpost 1210 | -10/Mines | Received a Rocket Launcher from a helpful Derelict 1340 | -10/Mines | Discovered new exit (range 6) 1344 | -10/Mines | Learned Materials terminal intel 1366 | -10/Mines | Entered Materials 1366 | -9/Materials | Evolved 2 slots: Utility x2 1367 | -9/Materials | Loaded intel: 12 terminal locations 1367 | -9/Materials | Discovered new exit (range 15) 1607 | -9/Materials | Discovered new exit (range 14) 1807 | -9/Materials | Discovered new exit (range 11) 2190 | -9/Materials | Discovered new exit (range 12) 2285 | -9/Materials | Repaired Carbon-fiber Leg 2345 | -9/Materials | Identified exit to Mines 2345 | -9/Materials | Identified exit to Storage 2588 | -9/Materials | Discovered new exit (range 16) 2665 | -9/Materials | Entered Storage 2700 | -9/Storage | Identified exit to Garrison 2774 | -9/Storage | Entered Garrison 2824 | -9/Garrison | Triggered checkpoint 2929 | -9/Garrison | Garrison Relay disabled 3028 | -9/Garrison | Garrison Relay disabled 3438 | -9/Garrison | Triggered checkpoint 3594 | -9/Garrison | Discovered new exit (range 15) 3794 | -9/Garrison | Triggered checkpoint 4018 | -9/Garrison | Core integrity fell below 50% 4304 | -9/Garrison | Triggered checkpoint 4424 | -9/Garrison | Triggered checkpoint 4434 | -9/Garrison | Triggered checkpoint 4516 | -9/Garrison | Discovered new exit (range 10) 4805 | -9/Garrison | Installed Relay Interface Framework 4844 | -9/Garrison | Triggered checkpoint 4894 | -9/Garrison | Discovered new exit (range 48) 4894 | -9/Garrison | Discovered new exit (range 28) 4894 | -9/Garrison | Discovered new exit (range 79) 4909 | -9/Garrison | Garrison Relay disabled 5085 | -9/Garrison | Learned Materials security intel 5276 | -9/Garrison | Garrison Relay disabled 5296 | -9/Garrison | Triggered checkpoint 5390 | -9/Garrison | P-60 Hacker assimilated allied Mercenary 2a 5507 | -9/Garrison | Entered Materials 5507 | -8/Materials | Accompanied by 2 allies 5507 | -8/Materials | Evolved 2 slots: Utility x2 5734 | -8/Materials | Lost 4 allies 5750 | -8/Materials | Build established: Bothacker-Mutant 5806 | -8/Materials | Garrison activated, responded to threat 5862 | -8/Materials | Lost 3 allies 5888 | -8/Materials | Identified exit to Garrison 5888 | -8/Materials | Entered Garrison 5888 | -8/Garrison | Accompanied by 4 allies 5952 | -8/Garrison | Triggered checkpoint 6003 | -8/Garrison | Garrison Relay disabled 6016 | -8/Garrison | Garrison Relay disabled 6193 | -8/Garrison | Lost 4 allies 6234 | -8/Garrison | Triggered checkpoint 6262 | -8/Garrison | Triggered checkpoint 6301 | -8/Garrison | Discovered new exit (range 10) 6336 | -8/Garrison | Triggered checkpoint 6347 | -8/Garrison | Garrison Relay disabled 6392 | -8/Garrison | Expanded RIF knowledge: Command Fork 6526 | -8/Garrison | Triggered checkpoint 6539 | -8/Garrison | Discovered new exit (range 12) 6572 | -8/Garrison | Triggered checkpoint 6573 | -8/Garrison | Garrison Relay disabled 6672 | -8/Garrison | Triggered checkpoint 6708 | -8/Garrison | Triggered checkpoint 6812 | -8/Garrison | Triggered checkpoint 6853 | -8/Garrison | Garrison Relay disabled 6910 | -8/Garrison | System corruption reached 10% 6946 | -8/Garrison | Lost 3 parts (1p1n1w) 7310 | -8/Garrison | Entered Materials 7310 | -8/Materials | Accompanied by 4 allies 7545 | -8/Materials | Discovered new exit (range 8) 7619 | -8/Materials | Identified exit to Garrison 7673 | -8/Materials | Entered Garrison 7673 | -8/Garrison | Accompanied by 7 allies 7743 | -8/Garrison | Triggered checkpoint 7770 | -8/Garrison | Garrison Relay disabled 7920 | -8/Garrison | Triggered checkpoint 7976 | -8/Garrison | Garrison Relay disabled 8012 | -8/Garrison | Discovered new exit (range 14) 8043 | -8/Garrison | Expanded RIF knowledge: Autooverride 8211 | -8/Garrison | Lost 4 allies 8262 | -8/Garrison | Discovered new exit (range 10) 8295 | -8/Garrison | Triggered checkpoint 8334 | -8/Garrison | Garrison Relay disabled 9241 | -8/Garrison | Triggered checkpoint 9271 | -8/Garrison | Garrison Relay disabled 9302 | -8/Garrison | Discovered new exit (range 12) 9421 | -8/Garrison | P-60 Hacker assimilated allied Y-45 Defender 9493 | -8/Garrison | Garrison Relay disabled 9500 | -8/Garrison | Garrison Relay disabled 9512 | -8/Garrison | Garrison Relay disabled 9526 | -8/Garrison | Garrison Relay disabled 10413 | -8/Garrison | Entered Factory 10413 | -7/Factory | Accompanied by 6 allies 10413 | -7/Factory | Evolved 2 slots: Propulsion x1, Utility x1 10746 | -7/Factory | Lost 6 allies 10813 | -7/Factory | First assault squad dispatched 10925 | -7/Factory | Identified exit to Garrison 10928 | -7/Factory | Entered Garrison 10928 | -7/Garrison | Accompanied by 6 allies 10972 | -7/Garrison | Discovered new exit (range 50) 10972 | -7/Garrison | Discovered new exit (range 71) 10972 | -7/Garrison | Discovered new exit (range 62) 10978 | -7/Garrison | Triggered checkpoint 10988 | -7/Garrison | P-60 Hacker assimilated allied Soldier 4a 11054 | -7/Garrison | Garrison Relay disabled 11063 | -7/Garrison | Lost 5 allies 11122 | -7/Garrison | Expanded RIF knowledge: Threat Obfuscation 11155 | -7/Garrison | Triggered checkpoint 11166 | -7/Garrison | Triggered checkpoint 11196 | -7/Garrison | Core integrity fell below 50% 11197 | -7/Garrison | Lost 3 allies 11226 | -7/Garrison | Core integrity fell below 20% 11260 | -7/Garrison | Lost 13 parts (1p4n4u4w) 11290 | -7/Garrison | Destroyed 8 combat bots 11442 | -7/Garrison | Entered Factory 11442 | -6/Factory | Evolved 2 slots: Utility x2 11707 | -6/Factory | Identified exit to Garrison 11707 | -6/Factory | Entered Garrison 11757 | -6/Garrison | Triggered checkpoint 11841 | -6/Garrison | Triggered checkpoint 11848 | -6/Garrison | Triggered checkpoint 11881 | -6/Garrison | Lost 3 parts (1u2w) 11986 | -6/Garrison | Assembled breached garrison interior 11988 | -6/Garrison | Garrison Relay disabled 12086 | -6/Garrison | Discovered new exit (range 10) 12091 | -6/Garrison | Entered Factory 12091 | -5/Factory | Evolved 2 slots: Power x1, Propulsion x1 12129 | -5/Factory | Repaired Imp. Gravmag System 12276 | -5/Factory | Lost 5 allies 12281 | -5/Factory | Lost 5 parts (2p2n1u) 12300 | -5/Factory | Build established: Botlord-Mutant 12375 | -5/Factory | Lost 5 parts (1p1n1u2w) 12631 | -5/Factory | Lost 3 parts (1n1u1w) 12647 | -5/Factory | Build established: Bothacker-Mutant 12918 | -5/Factory | Identified exit to Upper Caves 13347 | -5/Factory | Fabricated B-48 Gladiator? 13795 | -5/Factory | Build established: Scavenger-Mutant 14220 | -5/Factory | Identified exit to Garrison 14220 | -5/Factory | Entered Garrison 14253 | -5/Garrison | Core integrity fell below 50% 14402 | -5/Garrison | Triggered checkpoint 14408 | -5/Garrison | Garrison Relay disabled 14521 | -5/Garrison | Spotted B-75 Beast 14548 | -5/Garrison | Lost 3 allies 14551 | -5/Garrison | Hijacked Beast 6a control node with streamctrl_high 14621 | -5/Garrison | Lost 4 parts (1p1n2u) 14638 | -5/Garrison | Triggered checkpoint 14649 | -5/Garrison | Core integrity fell below 20% 14666 | -5/Garrison | Lost 3 parts (1p1u1w) 14669 | -5/Garrison | Discovered new exit (range 10) 14672 | -5/Garrison | Spotted B-86 Titan 14679 | -5/Garrison | Rewired B-75 Beast 14693 | -5/Garrison | Rewired B-90 Cyclops 14705 | -5/Garrison | Destroyed by B-86 Titan with Railgun Last Messages --------------- 14682_ Slug penetrates Beast 6b. 14686_ Machine disabled. 14686_ Beast 6b suffers critical hit (Blast). 14689_ B-86 Titan activates siege mode. 14689_ Attempting to rewire B-90 Cyclops. 14692_ Beast 6b destroyed. 14693_ Attempting to rewire B-90 Cyclops. 14693_ B-90 Cyclops rewired. 14694_ Slug penetrates B-86 Titan. 14699_ Penetrated by Slug. 14699_ KE Penetrator destroyed. 14699_ Slug penetrates Machine. 14699_ Machine disabled. 14701_ Slug penetrates B-86 Titan. 14701_ Slug penetrates Machine. 14702_ Imp. Weapon Shielding destroyed. 14702_ KE Penetrator destroyed. 14703_ Acquired 12 matter. 14705_ Machine disabled. 14705_ Penetrated by Slug. Map ----- +----------------------------------------------------+ | | | | | | | | | | | | | | | | | | | | | | | | | | | | | | | ????????????????????????????????????????????????? | | ????????????????????????????????????????????????? | | ????????????????????????????????????????????????? | | ????????????????????????????????????????????????? | | ?????????????????###################????????????? | | ?????????????????#""""" """ """""#????????????? | | ?????????????????#"m""" """ """m"#????????????? | | ?????????????????#"" BB ""#????????????? | | ?????????????????#"" BB ""#????????????? | | ?????????????????#"" % "#????????????? | | ?????????????????#BB @ ! % #????????????? | | ?????????????????#BB ! %#????????????? | | ?????????????????#"" % ""#????????????? | | ?????????????????#" ""#????????????? | | ?????????????????#"" % "#????????????? | | ?????????????????#BB BB#????????????? | | ?????????????????#BB BB#????????????? | | ?????????????????#" "#????????????? | | ?????????????????##" "##????????????? | | ??????????????????## ##?????????????? | | ???????????????????# #??????????????? | | ???????????????????####### ######??????????????? | | ???????????????????####### ########????????????? | | ???????????? h #????????????? | | ???????????? #????????????? | | ???????????????###### < ######### #????????????? | | ????????????????????# ????????# #????????????? | | ????????????????????###?????????# #????????????? | | ????????????????????????????????# #????????????? | | ????????????????????????????????# #????????????? | | ????????????????????????????????# #????????????? | | ????????????????????????????????# #????????????? | | ????????????????????????????????# #????????????? | | ????????????????????????????????# #????????????? | | ????????????????????????????????# #????????????? | +----------------------------------------------------+ Best States ------------- Heat Dissipation 59 Coolant Potential 80 Energy Generation 39 Energy Capacity 530 Matter Stores 300 Matter Capacity 300 Sight Range 16 Terrain Scan Density 10 ECM Strength 2 Additional Mass Support 12 Base Temperature (-) 100 Armor Coverage 225 Resistance: KI 20 Resistance: EX 50 Weapon Shielding 66 Weapon Cycling 20 Phase Shifting 15 Evasion (%) 68 Targeting Accuracy 6 Target Analysis 9 Recoil Reduction 4 Kinecelleration 40 Offensive Hacking 10 Defensive Hacking 38 Relay Coupler Types 5 Relay Coupler Value 157 Item Schematics ----------------- None Robot Schematics ------------------ None Fabricated ------------ B-48 Gladiator | x3 | -5/Factory | Preloaded Repaired ---------- Carbon-fiber Leg | 64% | -9/Materials Imp. Gravmag System | 14% | -5/Factory Studied --------- Aluminum Leg | -9/Materials | Hacked Particle Gun | -9/Materials | Hacked Rocket Launcher | -9/Materials | Hacked Spread Laser | -9/Materials | Hacked Hvy. Assault Rifle | -9/Materials | Hacked Carbon-fiber Leg | -8/Materials | Hacked Alien Tech Used ----------------- None Achievements -------------- Short-term Sacrifices Challenges ------------ None Game ------ Seed SurgeBombardmentBlasthammer Manual? 0 Play Time 01:56:27 Cumulative 139.9 hours Start 2026.09.19 @ 04:12:24 End 2026.09.19 @ 06:09:16 Sessions 1 Manual Loads 0 Difficulty Rogue Special Mode None Game No. 154 Rogue 154 Adventurer 0 Explorer 0 Win Type - Total 0 Types 0/0/0/0/0/0/0/0/0/0 Lore% 54 Gallery% 57 Achievement% 45 Wizard Run 0 Options --------- Layout 1 ASCII 0 Keyboard 0 Movement Mouse Keybinds 0 Fullscreen 2 Font 24/Smallcaps Map View 50x35 Zoom Use 0% Tactical HUD 1 Map Filters NONE Filters NONE Steam 1 RUN: 7467f512-bf62-4703-9c72-5e4972a30f7c